bitfinex/quotes_ETHUSD_20251025
["timestamp","ask_amount","ask_price","bid_price","bid_amount"]
[1761380696790,0.4577,3943.8,3942.6,0.80653218]
[1761380696791,0.1272,3943.1,3942.6,0.80653218]
[1761380696991,0.1272,3943.1,3942.7,3.19]
[1761380697192,0.001,3942.8,3942.7,3.19]
[1761380697396,0.217,3942.7,3942.6,0.1272]
[1761380697592,0.217,3942.7,3942.6,3.3172]
[1761380697786,0.6877,3942.7,3942.6,3.3172]
[1761380699208,0.6877,3942.7,3942.6,0.1272]
[1761380699408,0.6877,3942.7,3942.1,0.68133218]
[1761380699596,2.99822799,3942.6,3942.2,3.3172]
[1761380699801,2.53665465,3942.2,3942.1,0.002]
[1761380700002,2.99845465,3942.2,3942.1,0.002]
[1761380700313,0.56336395,3942.2,3942.1,0.002]
[1761380700513,3.1000186,3942.2,3942.1,3.194]
[1761380702321,3.66367429,3942.2,3942.1,3.194]
[1761380703397,3.66367429,3942.2,3942.1,0.002]
[1761380708516,3.56211034,3942.2,3942.1,0.002]
[1761380709821,4.19619034,3942.2,3942.1,0.002]
[1761380715407,4.19719034,3942.2,3942.1,0.002]
[1761380719334,4.19719034,3942.2,3941.6,0.002]
[1761380719335,3.04379207,3941.8,3941.6,1e-08]
[1761380719643,10.26321834,3941.7,3941.6,1e-08]
[1761380719951,10.71221834,3941.7,3941.6,1e-08]
[1761380720143,10.81382202,3941.7,3941.6,1e-08]
[1761380720348,12.4025784,3941.7,3941.6,1e-08]
[1761380720924,5.50191649,3941.7,3941.6,1e-08]
[1761380721169,5.40031281,3941.7,3941.6,1e-08]
[1761380723165,4.44443281,3941.7,3941.6,1e-08]
[1761380723359,3.30467643,3941.7,3941.6,1e-08]
[1761380723767,0.1272,3941.7,3941.6,1e-08]
[1761380723950,2.66417643,3941.7,3941.6,1e-08]
[1761380724150,0.1272,3941.7,3941.6,1e-08]
[1761380725150,2.66417643,3941.7,3941.6,1e-08]
[1761380725359,3.18428215,3941.7,3941.6,1e-08]
[1761380725662,3.62818215,3941.7,3941.6,1e-08]
[1761380727364,3.50098215,3941.7,3941.6,1e-08]
[1761380728764,3.05708215,3941.7,3941.6,1e-08]
[1761380728950,3.50098215,3941.7,3941.6,1e-08]
[1761380731972,3.05708215,3941.7,3941.6,1e-08]
[1761380734257,3.05808215,3941.7,3941.6,1e-08]
[1761380734565,3.50198215,3941.7,3941.6,1e-08]
[1761380736260,4.00886215,3941.7,3941.6,1e-08]
[1761380737291,4.13606215,3941.7,3941.6,1e-08]
[1761380740797,4.23765732,3941.7,3941.6,1e-08]
[1761380741321,5.66565732,3941.7,3941.6,1e-08]
[1761380742718,8.86165732,3941.7,3941.6,1e-08]
[1761380751243,8.98885732,3941.7,3941.6,1e-08]
[1761380757409,3.0441139,3941.3,3941.2,1e-08]
[1761380757610,11.50297581,3941.3,3941.2,1e-08]
[1761380757911,11.93097581,3941.3,3941.2,1e-08]
[1761380758223,12.03259937,3941.3,3941.2,1e-08]
[1761380758902,15.61855454,3941.3,3941.2,1e-08]
[1761380759109,17.81451337,3941.3,3941.2,1e-08]
[1761380759640,16.9005582,3941.3,3941.2,1e-08]
[1761380761109,17.0277582,3941.3,3941.2,1e-08]
[1761380766331,16.92613464,3941.3,3941.2,1e-08]
[1761380767850,17.08243464,3941.3,3941.2,1e-08]
[1761380769556,5.71637143,3940.9,3940.8,1e-08]
[1761380769758,15.37783127,3940.9,3940.8,1e-08]
[1761380769926,15.93653127,3940.9,3940.8,1e-08]
[1761380770258,16.03816542,3940.9,3940.8,1e-08]
[1761380775958,3.04501548,3939.9,3939.8,0.002]
[1761380776159,3.04501548,3939.9,3939.4,1e-08]
[1761380776160,3.04527319,3939.5,3939.4,1e-08]
[1761380776460,9.9519351,3939.5,3939.4,1e-08]
[1761380777230,9.9519351,3939.5,3939.4,0.47110001]
[1761380777431,3.04553096,3939.1,3938.0,0.1573]
[1761380777639,3.04553096,3939.1,3938.0,3.86596191]
[1761380778236,3.198,3939.2,3938.0,0.1573]
[1761380778451,2.53923284,3938.2,3938.0,0.1573]
[1761380778770,2.53929559,3938.1,3938.0,0.1573]
[1761380783668,2.53929559,3938.1,3938.0,3.3553]
[1761380786154,2.66649559,3938.1,3938.0,3.3553]
[1761380786471,2.66649559,3938.1,3938.0,3.3573]
[1761380788746,0.50788,3939.0,3938.0,3.3573]
[1761380788940,2.66636864,3938.3,3938.0,3.3573]
[1761380789470,0.1272,3938.3,3938.0,3.3573]
[1761380789644,2.66636825,3938.3,3938.0,3.3573]
[1761380790771,2.53927764,3938.2,3938.0,3.3573]
[1761380791850,0.1272,3938.3,3938.0,3.3573]
[1761380792464,2.53906545,3938.5,3938.1,0.1272]
[1761380792768,2.53918465,3938.3,3938.2,3.196]
[1761380794584,2.53918465,3938.3,3938.0,0.2865]
[1761380794783,2.53918465,3938.3,3938.1,3.196]
[1761380794974,2.53918465,3938.3,3938.0,0.2865]
[1761380795175,2.53918465,3938.3,3938.1,3.196]
[1761380797308,2.53912404,3938.4,3938.1,3.196]
[1761380797486,2.53912404,3938.4,3938.0,0.2865]
[1761380797687,2.53917794,3938.3,3938.1,3.195]
[1761380797884,2.53897728,3938.6,3938.1,3.195]
[1761380798089,2.53910724,3938.4,3938.1,3.195]
[1761380799996,2.53905975,3938.5,3938.1,3.195]
[1761380801796,2.53910832,3938.4,3938.1,3.195]
[1761380802002,2.53897636,3938.6,3938.2,3.195]
[1761380802400,2.53915026,3938.4,3938.2,3.195]
[1761380802705,2.53899292,3938.6,3938.2,3.195]
[1761380803314,0.1272,3938.7,3938.2,3.195]
[1761380803509,2.66613625,3938.7,3938.2,3.195]
[1761380803731,0.1272,3938.7,3938.3,0.02539166]
[1761380803931,0.001,3939.0,3938.3,0.7062192]
[1761380804132,0.1272,3938.8,3938.3,0.02539166]
[1761380804433,0.1272,3938.8,3938.3,0.7062192]
[1761380804734,2.66606375,3938.8,3938.3,0.7062192]
[1761380805113,0.001,3939.0,3938.3,0.68082754]
[1761380805324,0.001,3939.0,3938.4,0.80802754]
[1761380805325,0.1282,3939.0,3938.4,0.80802754]
[1761380805515,0.1282,3939.0,3938.5,3.195]
[1761380805913,2.66692211,3939.0,3938.5,3.195]
[1761380808638,2.5387958,3938.9,3938.5,3.195]
[1761380809838,2.53887334,3938.8,3938.5,3.195]
[1761380810530,2.53890877,3938.7,3938.5,3.195]
[1761380810730,2.53890877,3938.7,3938.6,3.195]
[1761380811327,0.1282,3939.0,3938.6,3.195]
[1761380812245,2.53890877,3938.7,3938.6,3.195]
[1761380813627,2.53890877,3938.7,3938.4,0.1272]
[1761380813947,2.53897323,3938.6,3938.5,3.195]
[1761380815645,2.53891937,3938.7,3938.5,3.195]
[1761380815954,0.1282,3939.0,3938.6,3.195]
[1761380816137,2.66692032,3939.0,3938.6,3.195]
[1761380816322,2.53878461,3938.9,3938.6,3.195]
[1761380817551,2.53877986,3938.9,3938.6,3.195]
[1761380820236,2.66692755,3939.0,3938.6,3.195]
[1761380821048,0.1282,3939.0,3938.6,3.87708587]
[1761380821356,2.66697248,3939.0,3938.6,3.87708587]
[1761380821528,0.1282,3939.0,3938.6,3.87908587]
[1761380821734,2.53889017,3938.8,3938.6,3.87908587]
[1761380822418,2.53889017,3938.8,3938.6,3.197]
[1761380822939,2.53889017,3938.8,3938.7,3.195]
[1761380823320,2.53889017,3938.8,3938.6,0.002]
[1761380823525,2.53889017,3938.8,3938.7,3.195]
[1761380823924,2.53889017,3938.8,3938.6,0.002]
[1761380824126,2.53889017,3938.8,3938.7,3.195]
[1761380824654,2.53889017,3938.8,3938.6,0.002]
[1761380825030,2.53889017,3938.8,3938.7,3.195]
[1761380825959,0.2307,3938.9,3938.6,0.002]
[1761380825960,2.53890877,3938.7,3938.6,0.002]
[1761380826130,2.53890877,3938.7,3938.6,3.197]
[1761380826728,2.53890877,3938.7,3938.6,0.002]
[1761380826942,2.53890877,3938.7,3938.6,3.197]
[1761380827463,2.53890877,3938.7,3938.6,0.002]
[1761380827826,2.53890877,3938.7,3938.6,3.197]
[1761380828227,2.53890877,3938.7,3938.6,0.002]
[1761380828228,3.5645123,3938.7,3938.6,0.002]
[1761380828470,3.6917123,3938.7,3938.6,0.002]
[1761380828760,3.2556123,3938.7,3938.6,0.002]
[1761380829437,0.1272,3938.7,3938.6,0.002]
[1761380829642,3.10220877,3938.7,3938.6,3.197]
[1761380830058,3.10220877,3938.7,3938.6,3.198]
[1761380830250,2.66610877,3938.7,3938.6,0.002]
[1761380830452,3.62279855,3938.7,3938.6,3.199]
[1761380830958,3.62279855,3938.7,3938.6,0.002]
[1761380831169,3.62279855,3938.7,3938.6,3.199]
[1761380831937,3.62279855,3938.7,3938.6,0.002]
[1761380832137,3.62279855,3938.7,3938.6,3.199]
[1761380832966,3.62279855,3938.7,3938.6,0.002]
[1761380833172,3.62279855,3938.7,3938.6,3.198]
[1761380833540,3.18669855,3938.7,3938.6,3.198]
[1761380834371,3.62279855,3938.7,3938.6,3.198]
[1761380835763,3.18669855,3938.7,3938.6,3.198]
[1761380836770,0.1272,3938.9,3938.6,3.198]
[1761380838094,2.53972855,3939.0,3938.6,3.198]
[1761380838265,2.66692855,3939.0,3938.6,3.198]
[1761380838474,2.5387823,3938.9,3938.6,3.198]
[1761380838681,2.66693374,3939.0,3938.6,6.91111373]
[1761380838876,0.1282,3939.0,3938.6,6.91111373]
[1761380839072,0.1282,3939.0,3938.6,7.5931996]
[1761380839297,2.66692161,3939.0,3938.6,7.5931996]
[1761380842995,2.66691711,3939.0,3938.6,7.5931996]
[1761380843608,0.1282,3939.0,3938.6,7.5931996]
[1761380844499,2.66693242,3939.0,3938.6,7.5931996]
[1761380848903,0.001,3939.0,3938.7,0.68208587]
[1761380849085,0.001,3939.0,3938.6,6.91111373]
[1761380849086,0.001,3939.0,3938.8,0.68208587]
[1761380849407,0.001,3939.0,3938.9,3.195]
[1761380852207,0.001,3939.0,3938.9,6.90811373]
[1761380854618,0.001,3939.0,3938.9,7.03531373]
[1761380858803,0.001,3939.0,3938.9,9.57409359]
[1761380861319,0.001,3939.0,3938.9,11.12929359]
[1761380861764,0.001,3939.0,3938.9,11.48819359]
[1761380863698,0.001,3939.0,3938.9,11.48719359]
[1761380867240,0.001,3939.0,3938.9,8.29319359]
[1761380867452,0.001,3939.0,3938.9,11.48719359]
[1761380870114,0.001,3939.0,3938.9,8.29319359]
[1761380870311,0.001,3939.0,3938.9,11.48719359]
[1761380875365,0.001,3939.0,3938.9,11.48919359]
[1761380878572,0.001,3939.8,3938.9,11.48919359]
[1761380878573,0.001,3939.8,3939.7,2.53826433]
[1761380878872,0.001,3939.8,3939.7,7.28746433]
[1761380879484,0.001,3939.8,3939.7,7.75296433]
[1761380882674,0.001,3939.8,3939.7,11.59096433]
[1761380883081,0.001,3939.8,3939.7,8.39696433]
[1761380883288,0.4665,3939.8,3939.7,15.30607806]
[1761380883606,0.001,3939.8,3939.7,15.30607806]
[1761380884106,0.001,3939.8,3939.7,11.46807806]
[1761380884706,0.001,3939.8,3939.7,8.27207806]
[1761380885009,0.4665,3939.8,3939.7,8.27207806]
[1761380885173,0.4665,3939.8,3939.7,11.00257806]
[1761380885693,0.4665,3939.8,3939.7,7.80657806]
[1761380885898,0.4665,3939.8,3939.7,11.00157806]
[1761380886603,0.4665,3939.8,3939.7,7.80657806]
[1761380886825,0.4665,3939.8,3939.7,8.71208087]
[1761380887024,0.4665,3939.8,3939.7,11.00157806]
[1761380887707,0.4665,3939.8,3939.7,8.48587769]
[1761380887881,0.4665,3939.8,3939.7,11.68087769]
[1761380888082,0.001,3939.8,3939.7,11.00157806]
[1761380888606,0.001,3939.8,3939.7,11.12877806]
[1761380889925,0.442,3939.8,3939.7,11.12877806]
[1761380892516,0.001,3939.8,3939.7,11.12877806]
[1761380893136,0.001,3939.8,3939.7,12.03428087]
[1761380894620,0.001,3939.8,3939.7,11.12877806]
[1761380896334,0.001,3939.8,3939.7,12.48704977]
[1761380896538,0.001,3939.8,3939.7,12.92904977]
[1761380898551,0.001,3939.8,3939.7,16.76704977]
[1761380899256,0.001,3939.8,3939.7,15.40877806]
[1761380899456,0.001,3939.8,3939.7,16.76704977]
[1761380900956,0.001,3939.8,3939.7,17.50567976]
[1761380903439,0.001,3939.8,3939.7,13.66767976]
[1761380904163,0.001,3939.8,3939.7,16.14740805]
[1761380906360,0.001,3939.8,3939.7,12.30940805]
[1761380906658,0.442,3939.8,3939.7,12.30940805]
[1761380907247,0.001,3939.8,3939.7,12.30940805]
[1761380913970,0.001,3939.8,3939.7,14.13558987]
[1761380914902,0.001,3939.8,3939.7,12.30940805]
[1761380915283,0.001,3939.8,3939.7,14.12505437]
[1761380918209,0.001,3939.8,3939.7,14.25135605]
[1761380918806,0.001,3939.8,3939.7,14.12505437]
[1761380921606,0.001,3939.8,3939.7,14.12305437]
[1761380922387,0.001,3939.8,3939.7,12.30740805]
[1761380925915,0.001,3940.2,3940.1,2.53800664]
[1761380926105,0.001,3940.2,3940.1,11.73795036]
[1761380926289,0.001,3940.2,3940.1,11.86515036]
[1761380926616,0.001,3940.2,3940.1,12.30325036]
[1761380930325,0.001,3940.2,3940.1,16.14125036]
[1761380937240,0.001,3940.2,3940.1,17.95718672]
[1761380937553,0.001,3940.2,3940.1,14.11918672]
[1761380938758,0.4314,3940.2,3940.1,12.30225036]
[1761380940623,0.4314,3940.2,3940.1,9.11025036]
[1761380940836,0.4314,3940.2,3940.1,12.30225036]
[1761380941255,0.4314,3940.2,3940.1,14.11818672]
[1761380941959,0.001,3940.2,3940.1,14.11818672]
[1761380944683,0.001,3940.2,3940.1,10.92618672]
[1761380944884,0.4314,3940.2,3940.1,14.11818672]
[1761380946352,0.4314,3940.2,3940.1,13.68008672]
[1761380947271,0.001,3940.2,3940.1,11.86415036]
[1761380947463,0.4314,3940.2,3940.1,11.86415036]
[1761380947858,0.4314,3940.2,3940.1,15.70215036]
[1761380948086,0.4314,3940.2,3940.1,8.67215036]
[1761380948270,0.4314,3940.2,3940.1,4.22040664]
[1761380948471,0.4314,3940.2,3940.1,8.77606982]
[1761380948874,0.4314,3940.2,3940.1,7.41240664]
[1761380949469,0.4314,3940.2,3940.1,8.77606982]
[1761380950297,0.4314,3940.2,3940.1,7.41240664]
[1761380950893,0.4314,3940.2,3940.1,11.86415036]
[1761380951203,0.4314,3940.2,3940.1,13.22781354]
[1761380953809,0.4314,3940.2,3940.1,11.86415036]
[1761380956305,0.4314,3940.2,3940.1,4.22040664]
[1761380956601,0.4314,3940.2,3940.1,7.41240664]
[1761380957103,0.4314,3940.2,3940.1,8.32085693]
[1761380957674,0.4314,3940.2,3940.1,5.12885693]
[1761380957874,0.4314,3940.2,3940.1,7.41240664]
[1761380958384,0.4314,3940.2,3940.1,8.32064412]
[1761380958903,0.4314,3940.2,3940.1,7.41240664]
[1761380959200,0.4542,3940.2,3940.1,7.41240664]
[1761380962798,0.4542,3940.2,3940.1,11.12193609]
[1761380976408,0.4542,3940.2,3940.1,12.48559927]
[1761380976623,0.001,3940.2,3940.1,12.48559927]
[1761380977505,0.001,3940.2,3940.1,11.57513609]
[1761380977707,0.001,3940.2,3940.1,15.41313609]
[1761380978016,0.4293,3940.2,3940.1,15.41313609]
[1761380978585,0.001,3940.2,3940.1,15.41313609]
[1761380979113,0.4293,3940.2,3940.1,15.41313609]
[1761380979715,0.001,3940.2,3940.1,15.41313609]
[1761380980130,0.001,3940.2,3940.1,11.57513609]
[1761380981321,0.001,3940.2,3940.1,8.38313609]
[1761380981527,0.001,3940.2,3940.1,11.57513609]
[1761380981731,0.001,3940.2,3940.1,8.38313609]
[1761380981930,0.001,3940.2,3940.1,11.57513609]
[1761380982344,0.4293,3940.2,3940.1,11.57513609]
[1761380983863,0.001,3940.2,3940.1,11.57513609]
[1761380986064,0.001,3940.2,3940.1,8.38313609]
[1761380986261,0.4293,3940.2,3940.1,11.57513609]
[1761380987265,0.4293,3940.2,3940.1,8.38313609]
[1761380987469,0.4293,3940.2,3940.1,11.57513609]
[1761380987964,0.001,3940.2,3940.1,8.38313609]
[1761380988285,0.001,3940.2,3940.1,11.57513609]
[1761380991377,0.4293,3940.2,3940.1,8.38313609]
[1761380991674,0.4293,3940.2,3940.1,11.57513609]
[1761380991974,0.4293,3940.2,3940.1,8.38313609]
[1761380992269,0.4293,3940.2,3940.1,11.57513609]
[1761380992480,0.4293,3940.2,3940.1,15.41313609]
[1761380992641,0.4293,3940.2,3940.1,12.22113609]
[1761380992838,0.001,3940.2,3940.1,12.22113609]
[1761380993571,0.001,3940.2,3940.1,15.41313609]
[1761380994991,0.4293,3940.2,3940.1,15.41313609]
[1761380995497,0.4293,3940.2,3940.1,11.57513609]
[1761380998300,0.001,3940.2,3940.1,11.57513609]
[1761381000480,0.4758,3940.2,3940.1,11.57513609]
[1761381000901,0.4758,3940.2,3940.1,11.57413609]
[1761381002490,0.4758,3940.2,3940.1,8.38313609]
[1761381002698,0.4758,3940.2,3940.1,11.57413609]
[1761381005709,0.001,3940.2,3940.1,11.57413609]
[1761381006188,0.4758,3940.2,3940.1,11.57413609]
[1761381008611,0.4758,3940.2,3940.1,8.38313609]
[1761381008775,0.4758,3940.2,3940.1,11.57413609]
[1761381011229,0.4758,3940.2,3940.1,8.38313609]
[1761381011433,0.4758,3940.2,3940.1,11.57413609]
[1761381012926,0.4758,3940.2,3940.1,8.38313609]
[1761381013428,0.4758,3940.2,3940.1,7.73740664]
[1761381013929,0.4758,3940.2,3940.1,7.28420664]
[1761381014630,0.4758,3940.2,3940.1,1.5552]
[1761381014830,0.4758,3940.2,3940.1,5.65511695]
[1761381015030,0.4758,3940.2,3940.1,4.7462]
[1761381017089,0.4758,3940.2,3940.1,5.50820055]
[1761381017620,0.4758,3940.2,3940.1,8.04620719]
[1761381018622,0.4758,3940.2,3940.1,5.50820055]
[1761381019447,0.4758,3940.2,3940.1,8.04620719]
[1761381019648,0.4758,3940.2,3940.1,5.50820055]
[1761381021240,0.4758,3940.2,3940.1,2.31720055]
[1761381021443,0.4758,3940.2,3940.1,5.50820055]
[1761381022541,0.4758,3940.2,3940.1,2.31720055]
[1761381022746,0.4758,3940.2,3940.1,5.50820055]
[1761381023047,0.4758,3940.2,3940.1,8.04620719]
[1761381023343,0.4758,3940.2,3940.1,5.50820055]
[1761381023759,0.4758,3940.2,3940.1,8.04620719]
[1761381024737,0.4758,3940.2,3940.1,2.31720055]
[1761381024917,0.4758,3940.2,3940.1,1.44306998]
[1761381025116,0.4758,3940.2,3940.1,3.191]
[1761381025568,0.4758,3940.2,3939.9,1.44309708]
[1761381025765,0.603,3940.2,3940.0,3.191]
[1761381026145,0.4627,3940.1,3940.0,3.191]
[1761381026384,0.4627,3940.1,3939.8,0.68306943]
[1761381026534,0.4627,3940.1,3939.8,0.002]
[1761381026535,0.1272,3940.0,3939.8,0.002]
[1761381026733,0.2203,3939.9,3939.8,0.002]
[1761381026975,0.81039,3939.9,3939.8,3.193]
[1761381027176,0.81039,3939.9,3939.8,0.002]
[1761381027351,0.81039,3939.9,3939.8,3.193]
[1761381029775,0.81039,3939.9,3939.8,0.002]
[1761381029942,0.81039,3939.9,3939.8,3.193]
[1761381040495,0.6653,3939.9,3939.8,3.193]
[1761381040675,0.2203,3939.9,3939.8,3.193]
[1761381040877,0.6653,3939.9,3939.8,3.193]
[1761381044278,0.1272,3940.0,3939.8,3.193]
[1761381044471,0.001,3940.2,3939.9,2.53808505]
[1761381044794,0.1272,3940.1,3939.9,2.53808505]
[1761381045178,0.445,3940.0,3939.9,2.53808505]
[1761381045409,0.445,3940.0,3939.8,6.17716236]
[1761381045702,0.235,3939.9,3939.8,0.448]
[1761381045884,0.235,3939.9,3939.8,3.639]
[1761381046084,0.68,3939.9,3939.8,3.639]
[1761381048601,0.68,3939.9,3939.8,6.1771999]
[1761381048801,0.68,3939.9,3939.8,2.9861999]
[1761381049002,0.68,3939.9,3939.8,6.1771999]
[1761381049238,0.68,3939.9,3939.8,3.639]
[1761381049720,0.68,3939.9,3939.8,0.448]
[1761381049921,0.68,3939.9,3939.8,3.639]
[1761381050220,0.235,3939.9,3939.8,6.1771999]
[1761381050423,0.5722,3940.1,3939.8,6.85826933]
[1761381050890,0.445,3940.0,3939.8,6.85826933]
[1761381052313,0.445,3940.0,3939.8,4.32006943]
[1761381052512,0.445,3940.0,3939.8,1.12906943]
[1761381052711,0.445,3940.0,3939.9,3.191]
[1761381054326,0.445,3940.0,3939.9,3.87206943]
[1761381054712,0.445,3940.0,3939.9,0.68106943]
[1761381055018,0.445,3940.0,3939.9,3.87206943]
[1761381055417,0.445,3940.0,3939.9,0.68106943]
[1761381055639,0.445,3940.0,3939.9,3.87206943]
[1761381060641,0.445,3940.0,3939.8,1.12906943]
[1761381060837,0.445,3940.0,3939.9,3.191]
[1761381062826,0.445,3940.0,3939.8,0.68306943]
[1761381063024,0.446,3940.0,3939.9,3.191]
[1761381063442,0.5732,3940.0,3939.9,3.191]
[1761381063837,0.5732,3940.0,3939.8,0.68306943]
[1761381064049,2.66631867,3940.0,3939.9,3.191]
[1761381064231,0.39503187,3940.0,3939.9,3.191]
[1761381064545,0.83293187,3940.0,3939.8,0.68306943]
[1761381064749,3.37101574,3940.0,3939.8,0.002]
[1761381064956,0.6735,3939.9,3939.8,0.002]
[1761381065161,1.36427403,3939.9,3939.8,3.193]
[1761381066668,0.6735,3939.9,3939.8,3.193]
[1761381069658,0.6735,3939.9,3939.8,0.002]
[1761381069871,0.6735,3939.9,3939.8,3.193]
[1761381070941,3.21163548,3939.9,3939.8,0.002]
[1761381071142,3.21163548,3939.9,3939.8,3.193]
[1761381071347,3.79952131,3939.9,3939.8,0.002]
[1761381071577,3.79952131,3939.9,3939.8,3.193]
[1761381072775,3.79952131,3939.9,3939.8,0.002]
[1761381072776,4.30640131,3939.9,3939.8,0.002]
[1761381081709,4.30740131,3939.9,3939.8,0.002]
[1761381083917,0.58888583,3939.9,3939.8,0.002]
[1761381084106,0.1282,3939.9,3939.8,0.002]
[1761381086603,2.66633548,3939.9,3939.8,0.002]
[1761381087418,2.66633548,3939.9,3939.8,3.193]
[1761381088806,3.35773548,3939.9,3939.8,3.193]
[1761381090325,3.35773548,3939.9,3939.8,0.002]
[1761381090626,3.94751066,3939.9,3939.8,0.002]
[1761381091329,1.40937518,3939.9,3939.8,0.002]
[1761381091528,2.88723548,3939.9,3939.8,0.002]
[1761381091721,2.66633548,3939.9,3939.8,0.002]
[1761381091922,0.1282,3939.9,3939.8,0.002]
[1761381096562,0.1282,3939.9,3939.8,3.192]
[1761381096756,0.1282,3939.9,3939.8,6.9032852]
[1761381096757,0.001,3939.9,3939.8,6.9032852]
[1761381096922,0.001,3939.9,3939.8,3.192]
[1761381097127,0.001,3939.9,3939.8,3.21738199]
[1761381097328,0.001,3939.9,3939.8,7.4125999]
[1761381097528,0.001,3939.9,3939.8,7.5397999]
[1761381113299,0.001,3939.9,3939.8,8.22086933]
[1761381118715,0.001,3939.9,3939.8,7.5397999]
[1761381121319,0.001,3939.9,3939.8,8.22012906]
[1761381122213,0.4294,3939.9,3939.8,5.68092916]
[1761381122417,0.4294,3939.9,3939.8,5.0006]
[1761381123026,0.4294,3939.9,3939.8,7.5387999]
[1761381123250,0.001,3939.9,3939.8,7.5387999]
[1761381124247,0.001,3939.9,3939.8,8.44771685]
[1761381126437,0.001,3939.9,3939.8,7.5387999]
[1761381127043,0.001,3939.9,3939.8,8.44758043]
[1761381128342,0.001,3939.9,3939.8,7.5387999]
[1761381128737,0.001,3939.9,3939.8,4.3497999]
[1761381128937,0.001,3939.9,3939.8,7.5387999]
[1761381130979,0.4668,3939.9,3939.8,8.44805613]
[1761381131477,0.001,3939.9,3939.8,8.44805613]
[1761381139486,0.001,3939.9,3939.8,7.5387999]
[1761381144703,0.001,3939.9,3939.8,11.99104075]
[1761381145813,0.001,3939.9,3939.8,15.82904075]
[1761381148344,0.001,3939.9,3939.8,11.99104075]
[1761381151747,0.001,3940.0,3939.8,11.99104075]
[1761381151748,0.001,3940.0,3939.9,4.09333548]
[1761381151926,0.001,3940.2,3940.1,4.09320664]
[1761381152255,0.001,3940.2,3940.1,7.28220664]
[1761381152546,0.001,3940.2,3940.1,7.51098375]
[1761381153646,0.001,3940.2,3940.1,4.32198375]
[1761381153812,0.001,3940.2,3940.1,7.50998375]
[1761381154339,0.001,3940.2,3940.1,8.86885809]
[1761381155036,0.001,3940.2,3940.1,5.68085809]
[1761381155237,0.001,3940.2,3940.1,8.86885809]
[1761381156570,0.001,3940.2,3940.1,5.68085809]
[1761381156726,0.001,3940.2,3940.1,8.86885809]
[1761381158874,0.001,3940.2,3940.1,5.68085809]
[1761381159077,0.001,3940.2,3940.1,8.86885809]
[1761381160879,0.001,3940.2,3940.1,12.70685809]
[1761381166384,0.001,3940.2,3940.1,11.34798375]
[1761381168766,0.001,3940.3,3940.2,4.09314223]
[1761381169094,0.001,3940.3,3940.2,8.5707625]
[1761381169264,0.001,3940.3,3940.2,8.54538308]
[1761381169465,0.001,3940.3,3940.2,11.73338308]
[1761381169664,0.001,3940.3,3940.2,11.83495761]
[1761381170595,0.001,3940.3,3940.2,15.67295761]
[1761381171695,0.001,3940.3,3940.2,12.48495761]
[1761381171898,0.4744,3940.3,3940.2,15.67295761]
[1761381172198,0.001,3940.3,3940.2,15.67295761]
[1761381175307,0.4744,3940.3,3940.2,15.67295761]
[1761381177202,0.4744,3940.3,3940.2,12.48495761]
[1761381177408,0.4744,3940.3,3940.2,15.67195761]
[1761381179408,0.4744,3940.3,3940.2,12.48495761]
[1761381179630,0.4744,3940.3,3940.2,15.67195761]
[1761381180214,0.4744,3940.3,3940.2,12.48495761]
[1761381180407,0.4744,3940.3,3940.2,15.67195761]
[1761381180709,0.4744,3940.3,3940.2,12.48495761]
[1761381180910,0.4744,3940.3,3940.2,15.67195761]
[1761381182200,0.4744,3940.3,3940.2,12.48495761]
[1761381182410,0.4744,3940.3,3940.2,15.67195761]
[1761381183421,0.4744,3940.3,3940.2,12.48495761]
[1761381183624,0.4744,3940.3,3940.2,15.67195761]
[1761381183829,0.001,3940.3,3940.2,15.67195761]
[1761381187148,0.4674,3940.3,3940.2,15.67195761]
[1761381190624,0.4674,3940.3,3940.2,12.48495761]
[1761381190930,0.4674,3940.3,3940.2,15.67195761]
[1761381191135,0.4674,3940.3,3940.2,12.48495761]
[1761381191336,0.4674,3940.3,3940.2,15.67195761]
[1761381191533,0.4674,3940.3,3940.2,11.83395761]
[1761381191753,0.001,3940.3,3940.2,11.83395761]
[1761381192242,0.4742,3940.3,3940.2,11.83395761]
[1761381196437,0.4742,3940.3,3940.2,8.64695761]
[1761381196750,0.4742,3940.3,3940.2,11.83395761]
[1761381197545,0.4742,3940.3,3940.2,8.64695761]
[1761381197713,0.4742,3940.3,3940.2,11.83395761]
[1761381201354,0.001,3940.3,3940.2,8.64695761]
[1761381201518,0.001,3940.3,3940.2,4.64987798]
[1761381201519,0.4742,3940.3,3940.2,4.64987798]
[1761381201854,0.4742,3940.3,3940.2,2.56459361]
[1761381202051,0.4742,3940.3,3940.2,5.75159361]
[1761381202244,0.4742,3940.3,3940.2,7.38171676]
[1761381205360,0.4742,3940.3,3940.2,1.65677453]
[1761381205546,0.4742,3940.3,3940.2,4.7422]
[1761381206842,0.4742,3940.3,3940.2,8.45215824]
[1761381208469,0.4742,3940.3,3940.2,10.99010047]
[1761381209855,0.4742,3940.3,3940.2,7.80310047]
[1761381210171,0.4742,3940.3,3940.2,10.99010047]
[1761381212678,0.4742,3940.3,3940.2,11.67022196]
[1761381215998,0.4742,3940.3,3940.2,8.48322196]
[1761381216296,0.4742,3940.3,3940.2,11.67022196]
[1761381216479,0.4742,3940.3,3940.2,10.99010047]
[1761381219494,0.4742,3940.3,3940.2,8.45215824]
[1761381219702,0.4742,3940.3,3940.2,9.13228642]
[1761381220472,0.4742,3940.3,3940.2,11.67022865]
[1761381220892,0.4742,3940.3,3940.2,8.48322865]
[1761381221310,0.4742,3940.3,3940.2,11.67022865]
[1761381223111,0.4742,3940.3,3940.2,8.45215824]
[1761381224613,0.4742,3940.3,3940.2,5.26515824]